[Event "Rapid Tournament (RAP)"]
[Site "Biel, Switzerland"]
[Date "2026.07.12"]
[Round "2.54"]
[White "Brixius, Dirk"]
[Black "Mury, Marie"]
[Result "1-0"]
[TimeControl "15 + 5"]
[WhiteTitle "-"]
[BlackTitle "-"]
[WhiteFideId "12909734"]
[BlackFideId "576035050"]
[WhiteElo "1821"]
[BlackElo "1603"]

1. c4 {[%clk 00:15:09]} c6 {[%clk 00:15:09]} {[%emt 00:00:02]} 2. Nc3 {[%clk
00:15:11]} {[%emt 00:00:03]} d5 {[%clk 00:15:13]} 3. cxd5 {[%clk 00:15:06]}
{[%emt 00:00:10]} cxd5 {[%clk 00:15:17]} {[%emt 00:00:01]} 4. d4 {[%clk
00:15:07]} {[%emt 00:00:03]} Nf6 {[%clk 00:15:19]} {[%emt 00:00:04]} 5. Nf3
{[%clk 00:14:59]} {[%emt 00:00:13]} Bf5 {[%clk 00:15:20]} {[%emt 00:00:04]} 6.
Qb3 {[%clk 00:14:42]} {[%emt 00:00:22]} b6 {[%clk 00:14:32]} {[%emt 00:00:52]}
7. Ne5 {[%clk 00:14:27]} {[%emt 00:00:20]} Nbd7 {[%clk 00:12:14]} {[%emt
00:02:23]} 8. Nxd5 {[%clk 00:13:39]} {[%emt 00:00:53]} Nxe5 {[%clk 00:11:37]}
{[%emt 00:00:42]} 9. Nxf6+ {[%clk 00:13:42]} {[%emt 00:00:02]} exf6 {[%clk
00:11:35]} {[%emt 00:00:08]} 10. dxe5 {[%clk 00:13:33]} {[%emt 00:00:13]} fxe5
{[%clk 00:11:33]} {[%emt 00:00:07]} 11. Qb5+ {[%clk 00:12:57]} {[%emt
00:00:42]} Qd7 {[%clk 00:10:15]} {[%emt 00:01:23]} 12. Qxe5+ {[%clk 00:12:59]}
{[%emt 00:00:03]} Be6 {[%clk 00:10:18]} {[%emt 00:00:02]} 13. Bd2 {[%clk
00:11:59]} {[%emt 00:01:05]} f6 {[%clk 00:07:38]} {[%emt 00:02:44]} 14. Qf4
{[%clk 00:11:14]} {[%emt 00:00:49]} Bd6 {[%clk 00:07:27]} {[%emt 00:00:17]} 15.
Qh4 {[%clk 00:10:06]} {[%emt 00:01:13]} O-O {[%clk 00:06:40]} {[%emt 00:00:52]}
16. e3 {[%clk 00:09:59]} {[%emt 00:00:12]} Rad8 {[%clk 00:06:11]} {[%emt
00:00:34]} 17. Bd3 {[%clk 00:09:49]} {[%emt 00:00:16]} g6 {[%clk 00:05:38]}
{[%emt 00:00:36]} 18. Bc4 {[%clk 00:09:19]} {[%emt 00:00:36]} Bxc4 {[%clk
00:04:59]} {[%emt 00:00:45]} 19. Qxc4+ {[%clk 00:09:22]} {[%emt 00:00:01]} Kg7
{[%clk 00:04:53]} {[%emt 00:00:05]} 20. Rd1 {[%clk 00:08:53]} {[%emt 00:00:40]}
b5 {[%clk 00:04:32]} {[%emt 00:00:26]} 21. Qe2 {[%clk 00:08:51]} {[%emt
00:00:07]} a6 {[%clk 00:03:41]} {[%emt 00:00:56]} 22. O-O {[%clk 00:08:54]}
{[%emt 00:00:03]} Qc7 {[%clk 00:03:45]} {[%emt 00:00:01]} 23. h3 {[%clk
00:08:47]} {[%emt 00:00:12]} Rfe8 {[%clk 00:03:32]} {[%emt 00:00:18]} 24. Bc3
{[%clk 00:08:48]} {[%emt 00:00:04]} Be5 {[%clk 00:03:20]} {[%emt 00:00:15]} 25.
Bxe5 {[%clk 00:08:40]} {[%emt 00:00:14]} Qxe5 {[%clk 00:02:54]} {[%emt
00:00:31]} 26. b3 {[%clk 00:08:28]} {[%emt 00:00:18]} Rc8 {[%clk 00:02:41]}
{[%emt 00:00:18]} 27. Rc1 {[%clk 00:08:14]} {[%emt 00:00:19]} Rcd8 {[%clk
00:02:34]} {[%emt 00:00:12]} 28. Rfd1 {[%clk 00:08:12]} {[%emt 00:00:06]} Rxd1+
{[%clk 00:02:25]} {[%emt 00:00:14]} 29. Qxd1 {[%clk 00:08:04]} {[%emt
00:00:13]} Re7 {[%clk 00:02:23]} {[%emt 00:00:08]} 30. Rc6 {[%clk 00:07:55]}
{[%emt 00:00:14]} a5 {[%clk 00:02:12]} {[%emt 00:00:16]} 31. Qd6 {[%clk
00:07:48]} {[%emt 00:00:11]} Qa1+ {[%clk 00:02:03]} {[%emt 00:00:15]} 32. Kh2
{[%clk 00:07:52]} {[%emt 00:00:01]} Rf7 {[%clk 00:01:59]} {[%emt 00:00:09]} 33.
Qd2 {[%clk 00:07:38]} {[%emt 00:00:18]} Qe5+ {[%clk 00:02:01]} {[%emt
00:00:03]} 34. g3 {[%clk 00:07:32]} {[%emt 00:00:10]} Qe4 {[%clk 00:02:00]}
{[%emt 00:00:06]} 35. Rd6 {[%clk 00:07:26]} {[%emt 00:00:12]} h5 {[%clk
00:01:51]} {[%emt 00:00:14]} 36. Rd4 {[%clk 00:07:20]} {[%emt 00:00:11]} Qa8
{[%clk 00:01:49]} {[%emt 00:00:07]} 37. Rd5 {[%clk 00:07:13]} {[%emt 00:00:12]}
a4 {[%clk 00:01:41]} {[%emt 00:00:14]} 38. Rxb5 {[%clk 00:07:07]} {[%emt
00:00:10]} axb3 {[%clk 00:01:41]} {[%emt 00:00:06]} 39. axb3 {[%clk 00:07:02]}
{[%emt 00:00:10]} Qc6 {[%clk 00:01:39]} {[%emt 00:00:07]} 40. Rd5 {[%clk
00:06:49]} {[%emt 00:00:17]} Qc7 {[%clk 00:01:37]} {[%emt 00:00:07]} 41. e4
{[%clk 00:06:36]} {[%emt 00:00:18]} h4 {[%clk 00:01:40]} {[%emt 00:00:03]} 42.
Qf4 {[%clk 00:06:27]} {[%emt 00:00:13]} hxg3+ {[%clk 00:01:35]} {[%emt
00:00:10]} 43. Qxg3 {[%clk 00:06:31]} {[%emt 00:00:01]} Qc2 {[%clk 00:01:31]}
{[%emt 00:00:10]} 44. Rd3 {[%clk 00:05:57]} {[%emt 00:00:38]} Re7 {[%clk
00:01:27]} {[%emt 00:00:08]} 45. Qe3 {[%clk 00:05:19]} {[%emt 00:00:44]} f5
{[%clk 00:01:15]} {[%emt 00:00:17]} 46. Qd4+ {[%clk 00:05:14]} {[%emt
00:00:09]} Kh7 {[%clk 00:00:55]} {[%emt 00:00:26]} 47. exf5 {[%clk 00:05:01]}
{[%emt 00:00:18]} gxf5 {[%clk 00:00:46]} {[%emt 00:00:14]} 48. Qh4+ {[%clk
00:05:02]} {[%emt 00:00:03]} 1-0

[Event "Rapid Tournament (RAP)"]
[Site "Biel, Switzerland"]
[Date "2026.07.12"]
[Round "3.1"]
[White "Amonatov, Farrukh"]
[Black "Tureshbayev, Anuar"]
[Result "1-0"]
[TimeControl "15 + 5"]
[WhiteTitle "-"]
[BlackTitle "-"]
[WhiteFideId "14700077"]
[BlackFideId "651081709"]
[WhiteElo "2593"]
[BlackElo "2246"]

1. e4 {[%clk 00:15:08]} c5 {[%clk 00:15:06]} {[%emt 00:00:06]} 2. Nf3 {[%clk
00:15:11]} e6 {[%clk 00:15:07]} {[%emt 00:00:05]} 3. d4 {[%clk 00:15:15]}
{[%emt 00:00:02]} cxd4 {[%clk 00:15:11]} 4. Nxd4 {[%clk 00:15:18]} {[%emt
00:00:02]} Nf6 {[%clk 00:15:15]} {[%emt 00:00:01]} 5. Nc3 {[%clk 00:15:21]}
{[%emt 00:00:03]} Nc6 {[%clk 00:15:19]} 6. Ndb5 {[%clk 00:15:25]} d6 {[%clk
00:15:23]} {[%emt 00:00:02]} 7. Bf4 {[%clk 00:15:28]} e5 {[%clk 00:15:26]}
{[%emt 00:00:03]} 8. Bg5 {[%clk 00:15:31]} a6 {[%clk 00:15:30]} {[%emt
00:00:02]} 9. Na3 {[%clk 00:15:35]} b5 {[%clk 00:15:34]} {[%emt 00:00:02]} 10.
Nd5 {[%clk 00:15:35]} {[%emt 00:00:04]} Be7 {[%clk 00:15:38]} {[%emt 00:00:01]}
11. Bxf6 {[%clk 00:15:39]} {[%emt 00:00:01]} Bxf6 {[%clk 00:15:41]} {[%emt
00:00:01]} 12. c4 {[%clk 00:15:42]} {[%emt 00:00:01]} b4 {[%clk 00:15:45]}
{[%emt 00:00:02]} 13. Nc2 {[%clk 00:15:46]} Rb8 {[%clk 00:15:40]} {[%emt
00:00:11]} 14. g3 {[%clk 00:15:49]} {[%emt 00:00:01]} O-O {[%clk 00:15:22]}
{[%emt 00:00:22]} 15. Bg2 {[%clk 00:15:52]} {[%emt 00:00:03]} Be6 {[%clk
00:15:16]} {[%emt 00:00:11]} 16. O-O {[%clk 00:15:46]} {[%emt 00:00:10]} g6
{[%clk 00:13:52]} {[%emt 00:01:30]} 17. Qd3 {[%clk 00:15:03]} {[%emt 00:00:47]}
Bg7 {[%clk 00:13:49]} {[%emt 00:00:09]} 18. Rad1 {[%clk 00:14:57]} {[%emt
00:00:10]} a5 {[%clk 00:13:41]} {[%emt 00:00:13]} 19. b3 {[%clk 00:14:53]}
{[%emt 00:00:10]} a4 {[%clk 00:13:19]} {[%emt 00:00:28]} 20. f4 {[%clk
00:13:18]} {[%emt 00:01:39]} exf4 {[%clk 00:12:55]} {[%emt 00:00:29]} 21. gxf4
{[%clk 00:13:20]} {[%emt 00:00:02]} Qa5 {[%clk 00:12:09]} {[%emt 00:00:51]} 22.
Nde3 {[%clk 00:13:02]} {[%emt 00:00:23]} axb3 {[%clk 00:11:33]} {[%emt
00:00:42]} 23. axb3 {[%clk 00:13:06]} {[%emt 00:00:01]} Qa2 {[%clk 00:09:05]}
{[%emt 00:02:34]} 24. e5 {[%clk 00:12:17]} {[%emt 00:00:53]} Na5 {[%clk
00:08:39]} {[%emt 00:00:32]} 25. Nd4 {[%clk 00:12:20]} {[%emt 00:00:02]} dxe5
{[%clk 00:07:55]} {[%emt 00:00:50]} 26. Ra1 {[%clk 00:12:24]} Qb2 {[%clk
00:07:59]} 27. Nxe6 {[%clk 00:12:26]} {[%emt 00:00:02]} fxe6 {[%clk 00:08:00]}
{[%emt 00:00:04]} 28. Rxa5 {[%clk 00:12:30]} {[%emt 00:00:02]} exf4 {[%clk
00:07:59]} {[%emt 00:00:06]} 29. Ng4 {[%clk 00:12:03]} {[%emt 00:00:31]} Rbd8
{[%clk 00:07:41]} {[%emt 00:00:24]} 30. Qe4 {[%clk 00:11:59]} {[%emt 00:00:09]}
Rd2 {[%clk 00:07:28]} {[%emt 00:00:19]} 31. Kh1 {[%clk 00:10:57]} {[%emt
00:01:07]} h5 {[%clk 00:07:04]} {[%emt 00:00:29]} 32. Qxe6+ {[%clk 00:10:55]}
{[%emt 00:00:07]} Kh8 {[%clk 00:07:00]} {[%emt 00:00:10]} 33. Qxg6 {[%clk
00:10:52]} {[%emt 00:00:07]} hxg4 {[%clk 00:06:50]} {[%emt 00:00:15]} 34. Rh5+
{[%clk 00:10:40]} {[%emt 00:00:17]} Kg8 {[%clk 00:06:54]} 35. Be4 {[%clk
00:10:25]} {[%emt 00:00:20]} 1-0

[Event "Rapid Tournament (RAP)"]
[Site "Biel, Switzerland"]
[Date "2026.07.12"]
[Round "3.2"]
[White "Cao, Qingfeng"]
[Black "Kozak, Adam"]
[Result "1/2-1/2"]
[TimeControl "15 + 5"]
[WhiteTitle "-"]
[BlackTitle "-"]
[WhiteFideId "8627568"]
[BlackFideId "753246"]
[WhiteElo "2265"]
[BlackElo "2592"]

1. d4 {[%clk 00:15:08]} {[%emt 00:00:01]} Nf6 {[%clk 00:15:08]} {[%emt
00:00:02]} 2. c4 {[%clk 00:15:11]} {[%emt 00:00:03]} e6 {[%clk 00:15:10]}
{[%emt 00:00:01]} 3. Nf3 {[%clk 00:15:11]} {[%emt 00:00:06]} d5 {[%clk
00:14:57]} {[%emt 00:00:18]} 4. g3 {[%clk 00:15:12]} {[%emt 00:00:03]} dxc4
{[%clk 00:14:48]} {[%emt 00:00:15]} 5. Bg2 {[%clk 00:14:46]} {[%emt 00:00:31]}
c6 {[%clk 00:14:50]} {[%emt 00:00:02]} 6. Ne5 {[%clk 00:12:33]} {[%emt
00:02:18]} Bb4+ {[%clk 00:14:51]} {[%emt 00:00:05]} 7. Nc3 {[%clk 00:12:32]}
{[%emt 00:00:06]} Nd5 {[%clk 00:14:51]} {[%emt 00:00:05]} 8. O-O {[%clk
00:12:29]} {[%emt 00:00:07]} Nxc3 {[%clk 00:12:42]} {[%emt 00:02:15]} 9. bxc3
{[%clk 00:12:33]} {[%emt 00:00:02]} Bxc3 {[%clk 00:12:44]} {[%emt 00:00:02]} 10.
Nxc4 {[%clk 00:12:34]} {[%emt 00:00:04]} b5 {[%clk 00:10:42]} {[%emt 00:02:08]}
11. Bb2 {[%clk 00:12:36]} {[%emt 00:00:03]} Bxb2 {[%clk 00:10:42]} {[%emt
00:00:05]} 12. Nxb2 {[%clk 00:12:39]} {[%emt 00:00:02]} a5 {[%clk 00:10:29]}
{[%emt 00:00:18]} 13. a3 {[%clk 00:12:23]} {[%emt 00:00:21]} O-O {[%clk
00:10:21]} {[%emt 00:00:14]} 14. e3 {[%clk 00:12:25]} {[%emt 00:00:04]} e5
{[%clk 00:08:10]} {[%emt 00:02:16]} 15. dxe5 {[%clk 00:11:57]} {[%emt
00:00:33]} Qe7 {[%clk 00:08:12]} {[%emt 00:00:02]} 16. Qd6 {[%clk 00:10:58]}
{[%emt 00:01:04]} Qxd6 {[%clk 00:08:03]} {[%emt 00:00:15]} 17. exd6 {[%clk
00:11:00]} {[%emt 00:00:02]} Rd8 {[%clk 00:08:02]} {[%emt 00:00:06]} 18. Rfd1
{[%clk 00:10:58]} {[%emt 00:00:07]} Be6 {[%clk 00:07:08]} {[%emt 00:01:00]} 19.
e4 {[%clk 00:06:15]} {[%emt 00:04:49]} f6 {[%clk 00:06:47]} {[%emt 00:00:26]}
20. f4 {[%clk 00:06:14]} {[%emt 00:00:06]} Nd7 {[%clk 00:05:01]} {[%emt
00:01:51]} 21. e5 {[%clk 00:05:54]} {[%emt 00:00:24]} Rac8 {[%clk 00:04:48]}
{[%emt 00:00:18]} 22. Nd3 {[%clk 00:05:51]} {[%emt 00:00:08]} g6 {[%clk
00:01:20]} {[%emt 00:03:34]} 23. Rac1 {[%clk 00:05:02]} {[%emt 00:00:53]} c5
{[%clk 00:00:50]} {[%emt 00:00:35]} 24. Bb7 {[%clk 00:05:02]} {[%emt 00:00:04]}
c4 {[%clk 00:00:54]} {[%emt 00:00:01]} 25. Bxc8 {[%clk 00:05:04]} {[%emt
00:00:03]} Rxc8 {[%clk 00:00:58]} {[%emt 00:00:02]} 26. exf6 {[%clk 00:05:06]}
{[%emt 00:00:02]} Kf7 {[%clk 00:00:55]} {[%emt 00:00:07]} 27. Ne5+ {[%clk
00:04:11]} {[%emt 00:01:01]} Kxf6 {[%clk 00:00:58]} {[%emt 00:00:02]} 28. Nxd7+
{[%clk 00:04:12]} {[%emt 00:00:04]} Bxd7 {[%clk 00:01:02]} {[%emt 00:00:01]} 29.
Rd4 {[%clk 00:04:13]} {[%emt 00:00:04]} Be6 {[%clk 00:00:06]} {[%emt 00:01:01]}
30. Kf2 {[%clk 00:04:11]} {[%emt 00:00:06]} b4 {[%clk 00:00:08]} {[%emt
00:00:04]} 31. axb4 {[%clk 00:04:14]} {[%emt 00:00:02]} axb4 {[%clk 00:00:12]}
32. d7 {[%clk 00:04:01]} {[%emt 00:00:18]} Rd8 {[%clk 00:00:16]} 33. Rd6 {[%clk
00:03:49]} {[%emt 00:00:16]} Kf7 {[%clk 00:00:10]} {[%emt 00:00:12]} 34. Re1
{[%clk 00:03:26]} {[%emt 00:00:28]} Bf5 {[%clk 00:00:07]} {[%emt 00:00:08]} 35.
g4 {[%clk 00:02:04]} {[%emt 00:01:26]} Bxg4 {[%clk 00:00:07]} {[%emt 00:00:05]}
36. Re4 {[%clk 00:02:01]} {[%emt 00:00:08]} b3 {[%clk 00:00:06]} {[%emt
00:00:06]} 37. Rxc4 {[%clk 00:02:04]} {[%emt 00:00:02]} Rxd7 {[%clk 00:00:07]}
{[%emt 00:00:05]} 38. Rxd7+ {[%clk 00:02:04]} {[%emt 00:00:05]} Bxd7 {[%clk
00:00:11]} {[%emt 00:00:01]} 39. Rc7 {[%clk 00:02:01]} {[%emt 00:00:08]} Ke8
{[%clk 00:00:07]} {[%emt 00:00:09]} 40. Rb7 {[%clk 00:02:03]} {[%emt 00:00:03]}
Be6 {[%clk 00:00:10]} {[%emt 00:00:02]} 41. Ke3 {[%clk 00:01:55]} {[%emt
00:00:13]} Bd5 {[%clk 00:00:06]} {[%emt 00:00:09]} 42. Rb5 {[%clk 00:01:54]}
{[%emt 00:00:05]} Be6 {[%clk 00:00:06]} {[%emt 00:00:05]} 43. Kd4 {[%clk
00:01:55]} {[%emt 00:00:03]} Kd7 {[%clk 00:00:07]} {[%emt 00:00:05]} 44. Ke5
{[%clk 00:01:52]} {[%emt 00:00:08]} Kc6 {[%clk 00:00:07]} {[%emt 00:00:05]} 45.
Rb8 {[%clk 00:01:35]} {[%emt 00:00:23]} Bc4 {[%clk 00:00:08]} {[%emt 00:00:04]}
46. Kd4 {[%clk 00:00:57]} {[%emt 00:00:42]} Be6 {[%clk 00:00:10]} {[%emt
00:00:03]} 47. Re8 {[%clk 00:00:29]} {[%emt 00:00:33]} Bf5 {[%clk 00:00:10]}
{[%emt 00:00:05]} 48. Kc3 {[%clk 00:00:33]} {[%emt 00:00:02]} Bc2 {[%clk
00:00:13]} {[%emt 00:00:02]} 49. Re7 {[%clk 00:00:28]} {[%emt 00:00:10]} h5
{[%clk 00:00:13]} {[%emt 00:00:05]} 50. Re5 {[%clk 00:00:29]} {[%emt 00:00:04]}
Kd6 {[%clk 00:00:16]} {[%emt 00:00:02]} 51. Rb5 {[%clk 00:00:27]} {[%emt
00:00:07]} Ke6 {[%clk 00:00:19]} {[%emt 00:00:02]} 52. Kd4 {[%clk 00:00:27]}
{[%emt 00:00:04]} Kf6 {[%clk 00:00:16]} {[%emt 00:00:08]} 53. Ke3 {[%clk
00:00:29]} {[%emt 00:00:03]} Ke6 {[%clk 00:00:18]} {[%emt 00:00:03]} 54. Kd4
{[%clk 00:00:14]} {[%emt 00:00:19]} Kf6 {[%clk 00:00:22]} {[%emt 00:00:01]} 55.
Ke3 {[%clk 00:00:11]} {[%emt 00:00:08]} 1/2-1/2

[Event "Rapid Tournament (RAP)"]
[Site "Biel, Switzerland"]
[Date "2026.07.12"]
[Round "3.3"]
[White "Bu, Xiangzhi"]
[Black "Gautier, Anand"]
[Result "1-0"]
[TimeControl "15 + 5"]
[WhiteTitle "-"]
[BlackTitle "-"]
[WhiteFideId "8601445"]
[BlackFideId "26010186"]
[WhiteElo "2583"]
[BlackElo "2223"]

1. c4 {[%clk 00:15:07]} {[%emt 00:00:04]} Nf6 {[%clk 00:14:50]} {[%emt
00:00:20]} 2. Nc3 {[%clk 00:15:10]} {[%emt 00:00:01]} g6 {[%clk 00:14:53]}
{[%emt 00:00:01]} 3. g3 {[%clk 00:15:14]} {[%emt 00:00:02]} Bg7 {[%clk
00:14:57]} {[%emt 00:00:01]} 4. Bg2 {[%clk 00:15:18]} O-O {[%clk 00:15:00]}
{[%emt 00:00:02]} 5. d4 {[%clk 00:15:21]} {[%emt 00:00:01]} d6 {[%clk
00:15:03]} {[%emt 00:00:02]} 6. Nf3 {[%clk 00:15:25]} {[%emt 00:00:01]} Nc6
{[%clk 00:15:03]} {[%emt 00:00:06]} 7. O-O {[%clk 00:15:28]} {[%emt 00:00:02]}
e5 {[%clk 00:15:05]} {[%emt 00:00:02]} 8. dxe5 {[%clk 00:15:10]} {[%emt
00:00:22]} Nxe5 {[%clk 00:15:08]} {[%emt 00:00:03]} 9. b3 {[%clk 00:15:07]}
{[%emt 00:00:08]} Nxf3+ {[%clk 00:15:05]} {[%emt 00:00:08]} 10. Bxf3 {[%clk
00:15:11]} {[%emt 00:00:02]} Bh3 {[%clk 00:15:08]} {[%emt 00:00:01]} 11. Re1
{[%clk 00:14:52]} {[%emt 00:00:23]} c6 {[%clk 00:14:38]} {[%emt 00:00:35]} 12.
Be3 {[%clk 00:11:49]} {[%emt 00:03:08]} Qa5 {[%clk 00:13:04]} {[%emt 00:01:40]}
13. Rc1 {[%clk 00:11:04]} {[%emt 00:00:50]} Rfe8 {[%clk 00:11:44]} {[%emt
00:01:25]} 14. Qd2 {[%clk 00:10:19]} {[%emt 00:00:50]} Re6 {[%clk 00:10:56]}
{[%emt 00:00:53]} 15. Nd5 {[%clk 00:07:10]} {[%emt 00:03:14]} Qxd2 {[%clk
00:10:17]} {[%emt 00:00:44]} 16. Nxf6+ {[%clk 00:07:13]} {[%emt 00:00:02]} Bxf6
{[%clk 00:10:21]} {[%emt 00:00:01]} 17. Bxd2 {[%clk 00:07:17]} h5 {[%clk
00:10:21]} {[%emt 00:00:05]} 18. Bg2 {[%clk 00:06:36]} {[%emt 00:00:46]} Bxg2
{[%clk 00:10:11]} {[%emt 00:00:16]} 19. Kxg2 {[%clk 00:06:40]} Rae8 {[%clk
00:06:58]} {[%emt 00:03:18]} 20. e3 {[%clk 00:06:40]} {[%emt 00:00:05]} Bg7
{[%clk 00:06:06]} {[%emt 00:00:57]} 21. Red1 {[%clk 00:06:40]} {[%emt
00:00:05]} f5 {[%clk 00:05:41]} {[%emt 00:00:30]} 22. Bb4 {[%clk 00:06:37]}
{[%emt 00:00:08]} Bf8 {[%clk 00:05:45]} {[%emt 00:00:01]} 23. Rc2 {[%clk
00:06:12]} {[%emt 00:00:30]} Kf7 {[%clk 00:05:40]} {[%emt 00:00:09]} 24. Rcd2
{[%clk 00:06:15]} {[%emt 00:00:02]} Rd8 {[%clk 00:05:44]} {[%emt 00:00:01]} 25.
Kf3 {[%clk 00:06:05]} {[%emt 00:00:15]} Be7 {[%clk 00:05:41]} {[%emt 00:00:08]}
26. h3 {[%clk 00:06:05]} {[%emt 00:00:05]} a6 {[%clk 00:05:01]} {[%emt
00:00:46]} 27. Ba5 {[%clk 00:05:54]} {[%emt 00:00:16]} Rc8 {[%clk 00:04:38]}
{[%emt 00:00:27]} 28. Bb6 {[%clk 00:05:46]} {[%emt 00:00:14]} Bd8 {[%clk
00:03:53]} {[%emt 00:00:50]} 29. Bd4 {[%clk 00:05:50]} {[%emt 00:00:01]} b5
{[%clk 00:03:39]} {[%emt 00:00:19]} 30. g4 {[%clk 00:05:42]} {[%emt 00:00:13]}
hxg4+ {[%clk 00:03:31]} {[%emt 00:00:13]} 31. hxg4 {[%clk 00:05:46]} fxg4+
{[%clk 00:03:23]} {[%emt 00:00:13]} 32. Kxg4 {[%clk 00:05:51]} {[%emt
00:00:01]} Be7 {[%clk 00:02:39]} {[%emt 00:00:49]} 33. Kf3 {[%clk 00:05:18]}
{[%emt 00:00:38]} Bf6 {[%clk 00:02:26]} {[%emt 00:00:18]} 34. Rc2 {[%clk
00:05:10]} {[%emt 00:00:13]} Bxd4 {[%clk 00:02:21]} {[%emt 00:00:09]} 35. Rxd4
{[%clk 00:05:14]} Ke7 {[%clk 00:02:05]} {[%emt 00:00:22]} 36. Rh4 {[%clk
00:05:15]} {[%emt 00:00:04]} Rf6+ {[%clk 00:01:49]} {[%emt 00:00:21]} 37. Ke2
{[%clk 00:05:16]} {[%emt 00:00:04]} c5 {[%clk 00:01:30]} {[%emt 00:00:25]} 38.
f4 {[%clk 00:05:02]} {[%emt 00:00:19]} Ra8 {[%clk 00:01:27]} {[%emt 00:00:08]}
39. Kd3 {[%clk 00:05:03]} {[%emt 00:00:05]} b4 {[%clk 00:01:25]} {[%emt
00:00:07]} 40. Rg2 {[%clk 00:05:00]} {[%emt 00:00:07]} a5 {[%clk 00:01:20]}
{[%emt 00:00:11]} 41. Rh7+ {[%clk 00:05:02]} {[%emt 00:00:02]} Ke6 {[%clk
00:01:13]} {[%emt 00:00:12]} 42. Rg7 {[%clk 00:05:05]} {[%emt 00:00:03]} a4
{[%clk 00:01:03]} {[%emt 00:00:15]} 43. bxa4 {[%clk 00:04:36]} {[%emt
00:00:34]} Rxa4 {[%clk 00:01:05]} {[%emt 00:00:03]} 44. Ke4 {[%clk 00:04:39]}
{[%emt 00:00:02]} Ra3 {[%clk 00:00:40]} {[%emt 00:00:31]} 45. R2xg6 {[%clk
00:03:21]} {[%emt 00:01:23]} Rxg6 {[%clk 00:00:35]} {[%emt 00:00:09]} 46. f5+
{[%clk 00:03:21]} {[%emt 00:00:05]} Kf6 {[%clk 00:00:36]} {[%emt 00:00:05]} 47.
Rxg6+ {[%clk 00:03:25]} Ke7 {[%clk 00:00:36]} {[%emt 00:00:05]} 48. Rg7+ {[%clk
00:03:22]} {[%emt 00:00:08]} Ke8 {[%clk 00:00:24]} {[%emt 00:00:17]} 49. Kd5
{[%clk 00:03:02]} {[%emt 00:00:24]} Rxe3 {[%clk 00:00:09]} {[%emt 00:00:20]} 50.
Kxd6 {[%clk 00:03:05]} {[%emt 00:00:03]} Rf3 {[%clk 00:00:08]} {[%emt
00:00:06]} 51. Re7+ {[%clk 00:02:53]} {[%emt 00:00:17]} Kd8 {[%clk 00:00:07]}
{[%emt 00:00:06]} 52. Re5 {[%clk 00:02:54]} {[%emt 00:00:03]} Rf2 {[%clk
00:00:10]} {[%emt 00:00:03]} 53. Kxc5 {[%clk 00:02:58]} {[%emt 00:00:01]} Rxa2
{[%clk 00:00:08]} {[%emt 00:00:07]} 54. Kxb4 {[%clk 00:03:01]} {[%emt
00:00:02]} Kd7 {[%clk 00:00:12]} {[%emt 00:00:01]} 55. Kb5 {[%clk 00:02:45]}
{[%emt 00:00:21]} Rb2+ {[%clk 00:00:15]} {[%emt 00:00:02]} 56. Kc5 {[%clk
00:02:49]} {[%emt 00:00:01]} Rf2 {[%clk 00:00:12]} {[%emt 00:00:08]} 57. Kb6
{[%clk 00:02:47]} {[%emt 00:00:07]} Rb2+ {[%clk 00:00:08]} {[%emt 00:00:09]} 58.
Rb5 {[%clk 00:02:51]} {[%emt 00:00:01]} Rc2 {[%clk 00:00:07]} {[%emt 00:00:06]}
59. Rd5+ {[%clk 00:02:55]} Kc8 {[%clk 00:00:10]} {[%emt 00:00:02]} 60. c5
{[%clk 00:02:59]} {[%emt 00:00:01]} Rh2 {[%clk 00:00:09]} {[%emt 00:00:06]} 61.
f6 {[%clk 00:02:06]} {[%emt 00:00:58]} Rf2 {[%clk 00:00:09]} {[%emt 00:00:05]}
62. Rd6 {[%clk 00:02:10]} {[%emt 00:00:02]} Rf1 {[%clk 00:00:07]} {[%emt
00:00:07]} 63. Kc6 {[%clk 00:02:07]} {[%emt 00:00:08]} Rf5 {[%clk 00:00:09]}
{[%emt 00:00:03]} 64. Re6 {[%clk 00:02:11]} {[%emt 00:00:01]} Kd8 {[%clk
00:00:09]} {[%emt 00:00:06]} 65. Kb6 {[%clk 00:02:10]} {[%emt 00:00:05]} Kd7
{[%clk 00:00:08]} {[%emt 00:00:06]} 66. Rd6+ {[%clk 00:01:52]} {[%emt
00:00:23]} Kc8 {[%clk 00:00:08]} {[%emt 00:00:04]} 67. c6 {[%clk 00:01:54]}
{[%emt 00:00:04]} Rf1 {[%clk 00:00:07]} {[%emt 00:00:06]} 68. Re6 {[%clk
00:01:57]} {[%emt 00:00:02]} Rb1+ {[%clk 00:00:07]} {[%emt 00:00:04]} 69. Kc5
{[%clk 00:02:01]} Rc1+ {[%clk 00:00:09]} {[%emt 00:00:04]} 70. Kd6 {[%clk
00:02:05]} Rd1+ {[%clk 00:00:08]} {[%emt 00:00:06]} 71. Ke7 {[%clk 00:02:09]}
{[%emt 00:00:01]} Kc7 {[%clk 00:00:10]} {[%emt 00:00:03]} 72. f7 {[%clk
00:02:12]} {[%emt 00:00:01]} 1-0